bitfinex/quotes_BTCUSD_20240915
["timestamp","ask_amount","ask_price","bid_price","bid_amount"]
[1726426642808,1.66999839,60105.0,60104.0,0.001652]
[1726426643027,1.5704039,60105.0,60104.0,0.001652]
[1726426643242,1.66999327,60105.0,60104.0,0.001652]
[1726426644353,0.83763557,60105.0,60094.0,0.023]
[1726426644574,0.04977464,60102.0,60094.0,0.023]
[1726426644792,0.49906,60101.0,60094.0,0.023]
[1726426644995,0.166396,60098.0,60094.0,0.023]
[1726426645209,0.49906,60097.0,60094.0,0.023]
[1726426645661,0.665459,60097.0,60094.0,0.023]
[1726426646083,0.49906,60097.0,60094.0,0.023]
[1726426646322,0.166403,60095.0,60094.0,0.023]
[1726426646550,0.49906,60095.0,60094.0,0.023]
[1726426646781,0.49906,60095.0,60094.0,0.189405]
[1726426647006,0.49906,60095.0,60094.0,0.522216]
[1726426647852,0.49906,60095.0,60094.0,0.855027]
[1726426648092,0.49906,60095.0,60094.0,0.522216]
[1726426650090,0.49906,60095.0,60094.0,0.855027]
[1726426653428,0.49906,60095.0,60094.0,0.023]
[1726426653638,0.49906,60095.0,60094.0,0.189405]
[1726426654083,0.49906,60095.0,60094.0,0.023]
[1726426654510,0.49906,60095.0,60094.0,0.189405]
[1726426655143,0.49906,60095.0,60094.0,0.522216]
[1726426655354,0.49906,60095.0,60094.0,0.855027]
[1726426655585,0.49906,60095.0,60094.0,0.522216]
[1726426657271,0.49906,60095.0,60094.0,0.523868]
[1726426657512,0.49906,60095.0,60094.0,0.856679]
[1726426657959,0.49906,60095.0,60094.0,1.36072581]
[1726426663800,0.29906,60095.0,60094.0,1.39401581]
[1726426666713,0.27830905,60095.0,60094.0,1.82682681]
[1726426666963,0.000826,60104.0,60103.0,1.320957]
[1726426667186,0.000826,60104.0,60103.0,1.68396953]
[1726426667428,0.000826,60104.0,60103.0,2.34949353]
[1726426667918,0.000826,60110.0,60109.0,1.530566]
[1726426668120,0.000826,60110.0,60109.0,2.01657853]
[1726426669483,0.000826,60110.0,60109.0,1.164548]
[1726426669696,0.000826,60110.0,60109.0,0.83182]
[1726426670874,0.000826,60110.0,60109.0,1.187548]
[1726426671075,0.000826,60110.0,60109.0,0.85482]
[1726426672638,0.000826,60110.0,60109.0,1.187548]
[1726426672854,0.000826,60110.0,60109.0,0.85482]
[1726426673782,0.000826,60110.0,60109.0,1.187548]
[1726426674000,0.000826,60110.0,60109.0,1.37932472]
[1726426674434,0.000826,60110.0,60109.0,1.55056053]
[1726426675391,0.000826,60110.0,60109.0,1.65056053]
[1726426675605,0.000826,60110.0,60109.0,1.98528853]
[1726426675828,0.000826,60110.0,60109.0,2.01857853]
[1726426676059,0.000826,60110.0,60109.0,2.01657853]
[1726426676727,0.000826,60110.0,60109.0,1.68385053]
[1726426677438,0.000826,60110.0,60109.0,1.66085053]
[1726426678818,0.000826,60110.0,60109.0,1.68385053]
[1726426680329,0.000826,60110.0,60109.0,1.35112253]
[1726426680777,0.000826,60110.0,60109.0,1.68385053]
[1726426683243,0.000826,60110.0,60109.0,1.15934581]
[1726426684519,0.000826,60110.0,60109.0,1.49207381]
[1726426685142,0.000826,60110.0,60109.0,1.15934581]
[1726426686169,0.000826,60110.0,60109.0,1.49207381]
[1726426696682,0.000826,60110.0,60109.0,1.68385053]
[1726426697367,0.000826,60110.0,60109.0,2.01657853]
[1726426698251,0.000826,60110.0,60109.0,1.68385053]
[1726426699345,0.000826,60110.0,60109.0,2.01657853]
[1726426699576,0.000826,60110.0,60109.0,1.68385053]
[1726426699824,0.000826,60110.0,60109.0,2.01657853]
[1726426700058,0.000826,60110.0,60109.0,1.68385053]
[1726426701417,0.000826,60110.0,60109.0,1.15934581]
[1726426702078,0.000826,60110.0,60109.0,1.49207381]
[1726426702362,0.000826,60110.0,60109.0,0.03329]
[1726426703237,0.000826,60110.0,60108.0,0.0020496]
[1726426703421,0.000826,60110.0,60109.0,0.166364]
[1726426703859,0.000826,60110.0,60109.0,0.189364]
[1726426705232,0.000826,60110.0,60109.0,0.023]
[1726426708969,0.499916,60110.0,60109.0,0.023]
[1726426712999,0.666277,60110.0,60109.0,0.023]
[1726426713212,0.71613827,60110.0,60109.0,0.023]
[1726426713453,0.666277,60110.0,60109.0,0.023]
[1726426713956,1.07379191,60110.0,60109.0,0.023]
[1726426714382,1.331723,60110.0,60109.0,0.023]
[1726426714597,1.07379191,60110.0,60109.0,0.023]
[1726426714810,0.999,60110.0,60109.0,0.023]
[1726426715034,0.999,60110.0,60108.0,0.0020496]
[1726426715035,0.83182,60109.0,60108.0,0.0020496]
[1726426715252,0.83182,60109.0,60108.0,0.0250496]
[1726426715253,1.40570269,60109.0,60108.0,0.0250496]
[1726426715484,0.499126,60105.0,60104.0,0.034936]
[1726426715697,0.499126,60105.0,60104.0,0.001646]
[1726426715698,1.659876,60105.0,60104.0,0.001646]
[1726426715938,1.6848069,60105.0,60104.0,0.001646]
[1726426716160,1.65987246,60105.0,60104.0,0.001646]
[1726426716376,1.330967,60105.0,60104.0,0.001646]
[1726426716634,0.998216,60105.0,60104.0,0.001646]
[1726426716870,1.0729814,60105.0,60104.0,0.001646]
[1726426717088,1.04805755,60105.0,60104.0,0.001646]
[1726426717321,1.0430556,60105.0,60104.0,0.001646]
[1726426717542,0.993216,60105.0,60104.0,0.001646]
[1726426717989,1.0430556,60105.0,60104.0,0.001646]
[1726426718207,0.993216,60105.0,60104.0,0.001646]
[1726426722010,0.49909,60105.0,60104.0,0.001646]
[1726426722436,0.665465,60105.0,60104.0,0.001646]
[1726426722916,0.49909,60105.0,60104.0,0.001646]
[1726426723842,0.998216,60105.0,60104.0,0.001646]
[1726426724375,1.33014374,60105.0,60104.0,0.001646]
[1726426724606,1.40484372,60105.0,60104.0,0.001646]
[1726426725066,1.66289474,60105.0,60104.0,0.001646]
[1726426725314,1.35642272,60104.0,60103.0,0.001646]
[1726426725555,2.08243057,60104.0,60103.0,0.001646]
[1726426726220,0.832015,60095.0,60094.0,0.001652]
[1726426726472,1.18925246,60095.0,60094.0,0.001652]
[1726426728122,1.52205846,60095.0,60094.0,0.001652]
[1726426728341,1.52205846,60095.0,60092.0,0.00164]
[1726426728342,0.499216,60094.0,60092.0,0.00164]
[1726426728576,0.99748274,60094.0,60092.0,0.00164]
[1726426731177,1.33029374,60094.0,60092.0,0.00164]
[1726426731411,0.99748274,60094.0,60092.0,0.00164]
[1726426732116,1.33029374,60094.0,60092.0,0.00164]
[1726426732324,0.99748274,60094.0,60092.0,0.00164]
[1726426736733,1.33029374,60094.0,60092.0,0.00164]
[1726426737241,0.99728249,60094.0,60092.0,0.00164]
[1726426737740,1.33009349,60094.0,60092.0,0.00164]
[1726426738698,0.99728249,60094.0,60092.0,0.00164]
[1726426738942,0.49826674,60094.0,60092.0,0.00164]
[1726426739180,0.66467174,60094.0,60092.0,0.00164]
[1726426740203,0.49826674,60094.0,60093.0,0.168054]
[1726426740439,0.49826674,60094.0,60093.0,0.500871]
[1726426740692,0.49826674,60094.0,60093.0,0.833688]
[1726426745540,0.49826674,60094.0,60093.0,1.166505]
[1726426746878,0.49826674,60094.0,60093.0,0.833688]
[1726426749571,0.49826674,60094.0,60093.0,1.166505]
[1726426749996,0.49826674,60094.0,60093.0,0.833688]
[1726426751843,0.49991274,60094.0,60093.0,0.833688]
[1726426752114,0.49991274,60094.0,60091.0,0.0001]
[1726426752115,0.166411,60092.0,60091.0,0.0001]
[1726426752351,0.166411,60092.0,60090.0,0.003981]
[1726426752352,0.832097,60089.0,60083.0,0.001638]
[1726426752572,1.74997956,60089.0,60083.0,0.001638]
[1726426753786,1.22536384,60089.0,60083.0,0.001638]
[1726426754009,1.55820284,60089.0,60083.0,0.001638]
[1726426754229,1.22536384,60089.0,60083.0,0.001638]
[1726426754446,1.34992704,60089.0,60083.0,0.001638]
[1726426754994,1.22536384,60089.0,60083.0,0.001638]
[1726426755232,1.34992122,60089.0,60083.0,0.001638]
[1726426755444,1.68276022,60089.0,60083.0,0.001638]
[1726426755645,1.55820284,60089.0,60083.0,0.001638]
[1726426756087,0.72610584,60089.0,60086.0,0.52462872]
[1726426756292,0.49826674,60089.0,60086.0,0.19177672]
[1726426756499,0.49826674,60089.0,60087.0,0.166423]
[1726426756698,0.49826674,60089.0,60086.0,0.35820372]
[1726426756939,0.49826674,60089.0,60087.0,0.166423]
[1726426757186,0.49826674,60089.0,60086.0,0.166425]
[1726426757398,0.49826674,60089.0,60087.0,0.166425]
[1726426757879,0.49826674,60089.0,60088.0,0.168062]
[1726426761867,0.49826674,60089.0,60088.0,0.00164]
[1726426762806,0.5481114,60089.0,60088.0,0.00164]
[1726426763426,0.7145304,60089.0,60088.0,0.00164]
[1726426763656,0.73945273,60089.0,60088.0,0.00164]
[1726426765031,0.49826674,60089.0,60088.0,0.35983872]
[1726426765284,0.49826674,60089.0,60088.0,0.00164]
[1726426765538,0.49826674,60089.0,60088.0,0.168062]
[1726426767169,0.49826674,60089.0,60088.0,0.500907]
[1726426767848,0.49826674,60089.0,60088.0,0.168062]
[1726426768066,0.49826674,60089.0,60088.0,0.500907]
[1726426769590,0.54815057,60089.0,60088.0,0.500907]
[1726426769964,0.49826674,60089.0,60088.0,0.500907]
[1726426771768,0.54815057,60089.0,60088.0,0.500907]
[1726426771983,0.54815057,60089.0,60088.0,0.00164]
[1726426772204,0.54815057,60089.0,60088.0,0.334485]
[1726426772419,0.49826674,60089.0,60088.0,0.500907]
[1726426773525,0.42615542,60089.0,60088.0,0.500907]
[1726426774588,0.42615542,60089.0,60088.0,0.833752]
[1726426775036,0.42615542,60089.0,60088.0,0.83359755]
[1726426779655,0.42615542,60089.0,60088.0,0.80859755]
[1726426779869,0.42615542,60089.0,60088.0,1.14144255]
[1726426780084,0.42615542,60089.0,60088.0,1.33321927]
[1726426780329,0.42615542,60089.0,60088.0,2.18740008]
[1726426781245,0.42615542,60089.0,60088.0,1.13569755]
[1726426787732,0.42615542,60089.0,60088.0,1.13652055]
[1726426788914,0.42615542,60089.0,60088.0,0.80942055]
[1726426790498,0.42615542,60089.0,60088.0,1.14226555]
[1726426790742,0.42615542,60089.0,60088.0,0.80942055]
[1726426792475,0.42615542,60089.0,60088.0,1.14226555]
[1726426793533,0.42615542,60089.0,60088.0,1.17562555]
[1726426794199,0.42615542,60089.0,60088.0,1.36986136]
[1726426798354,0.42615542,60089.0,60088.0,0.86578055]
[1726426799446,0.42780142,60089.0,60088.0,1.19862555]
[1726426800427,0.42744142,60089.0,60088.0,1.20062555]
[1726426800663,0.42744142,60089.0,60088.0,1.19862555]
[1726426801622,0.42744142,60089.0,60088.0,0.83242055]
[1726426802346,0.42744142,60089.0,60088.0,1.16526555]
[1726426802829,0.42744142,60089.0,60088.0,0.83242055]
[1726426803308,0.42744142,60089.0,60088.0,1.16526555]
[1726426803549,0.42744142,60089.0,60088.0,1.33650136]
[1726426805035,0.42744142,60089.0,60088.0,1.46234473]
[1726426806199,0.42744142,60089.0,60088.0,1.52821794]
[1726426808216,0.42744142,60089.0,60088.0,1.53021794]
[1726426808749,0.42744142,60089.0,60088.0,1.56357794]
[1726426808989,0.42744142,60089.0,60088.0,1.56157794]
[1726426809962,0.42744142,60089.0,60088.0,1.03701636]
[1726426810211,0.42744142,60089.0,60088.0,0.034183]
[1726426810455,0.42744142,60089.0,60088.0,0.53345]
[1726426811406,0.42744142,60089.0,60088.0,0.50009]
[1726426811939,0.42744142,60089.0,60088.0,0.832935]
[1726426812177,0.42744142,60089.0,60088.0,0.50009]
[1726426815799,0.42744142,60089.0,60088.0,0.832935]
[1726426816040,0.42744142,60089.0,60088.0,1.18878]
[1726426816293,0.42744142,60089.0,60088.0,1.79486081]
[1726426818166,0.42744142,60089.0,60088.0,1.8048621]
[1726426819296,0.42661164,60089.0,60088.0,1.8048621]
[1726426820015,0.42661164,60089.0,60088.0,1.8028621]
[1726426821143,0.42661164,60089.0,60088.0,1.79286081]
[1726426822059,0.42661164,60089.0,60088.0,0.000823]
[1726426822295,0.42661164,60089.0,60088.0,0.167245]
[1726426822513,0.42661164,60089.0,60088.0,0.69180658]
[1726426822739,0.47654409,60089.0,60088.0,0.000823]
[1726426823182,0.50149851,60089.0,60088.0,0.000823]
[1726426824115,0.50150543,60089.0,60088.0,0.000823]
[1726426824345,0.42661164,60089.0,60088.0,0.000823]
[1726426824561,0.66000316,60089.0,60088.0,0.000823]
[1726426824784,0.78483822,60089.0,60088.0,0.000823]
[1726426825003,0.50150666,60089.0,60088.0,0.000823]
[1726426825445,0.76013985,60089.0,60088.0,0.000823]
[1726426825970,0.66027771,60089.0,60088.0,0.000823]
[1726426826214,0.78510512,60089.0,60088.0,0.000823]
[1726426826427,0.76012377,60089.0,60088.0,0.000823]
[1726426826860,0.50149112,60089.0,60088.0,0.000823]
[1726426829970,0.50149112,60089.0,60088.0,0.167245]
[1726426830215,0.47651716,60089.0,60088.0,0.167245]
[1726426830938,0.47651716,60089.0,60088.0,0.000823]
[1726426830939,0.42661164,60089.0,60088.0,0.000823]
[1726426831184,0.47651729,60089.0,60088.0,0.167245]
[1726426831663,0.47651412,60089.0,60088.0,0.167245]
[1726426832624,0.47651412,60089.0,60088.0,0.000823]
[1726426832870,0.42661164,60089.0,60088.0,0.000823]
[1726426833379,0.42661164,60089.0,60088.0,0.50009]
[1726426833670,0.42661164,60089.0,60088.0,0.832935]
[1726426833881,0.42661164,60089.0,60088.0,1.02717081]
[1726426836277,0.42661164,60089.0,60088.0,0.167245]
[1726426836755,0.42661164,60089.0,60088.0,0.50009]
[1726426837550,0.42661164,60089.0,60088.0,1.00417081]
[1726426837793,0.42661164,60089.0,60088.0,1.39337581]
[1726426839363,0.42661164,60089.0,60088.0,1.40350984]
[1726426840497,0.42661164,60089.0,60088.0,1.39337581]
[1726426841402,0.42661164,60089.0,60088.0,0.889295]
[1726426842401,0.42661164,60089.0,60088.0,1.22214]
[1726426842650,0.42661164,60089.0,60088.0,1.39337581]
[1726426851884,0.42661164,60089.0,60088.0,1.36001581]
[1726426854183,0.42661164,60089.0,60088.0,1.02717081]
[1726426854619,0.42661164,60089.0,60088.0,1.36001581]
[1726426855751,0.42661164,60089.0,60088.0,1.36201581]
[1726426856421,0.42661164,60089.0,60088.0,1.36300761]
[1726426857383,0.42661164,60089.0,60088.0,1.36100761]
[1726426858491,0.42661164,60089.0,60088.0,1.39436761]
[1726426859144,0.42661164,60089.0,60088.0,1.39636761]
[1726426859488,0.42661164,60089.0,60088.0,1.39436761]
[1726426862146,0.42661164,60089.0,60088.0,0.8672868]
[1726426862873,0.42661164,60089.0,60088.0,1.2001318]
[1726426863176,0.42661164,60089.0,60088.0,1.37136761]
[1726426863383,0.42661164,60089.0,60088.0,1.39436761]
[1726426866513,0.42661164,60089.0,60088.0,1.25323919]
[1726426866952,0.42661164,60089.0,60088.0,0.8672868]
[1726426867413,0.42661164,60089.0,60088.0,1.05900338]
[1726426868889,0.42661164,60089.0,60088.0,1.02564338]
[1726426869127,0.42661164,60089.0,60088.0,1.35848838]
[1726426869590,0.42661164,60089.0,60088.0,1.55272419]
[1726426869820,0.42661164,60089.0,60088.0,1.58608419]
[1726426870271,0.40133895,60089.0,60088.0,1.71608419]
[1726426870769,0.40133895,60089.0,60088.0,2.04892919]
[1726426872639,0.40133895,60089.0,60088.0,2.05092919]
[1726426873435,0.001646,60094.0,60093.0,0.329768]
[1726426873673,0.001646,60094.0,60093.0,1.04853739]
[1726426873907,0.001646,60094.0,60093.0,1.05053739]
[1726426874414,0.001646,60094.0,60093.0,2.04898839]
[1726426875165,0.000826,60110.0,60104.0,0.002]
[1726426875410,0.000826,60110.0,60104.0,2.01868135]
[1726426875692,0.000826,60110.0,60104.0,2.05204135]
[1726426876399,0.000826,60110.0,60104.0,1.69365205]
[1726426877093,0.000826,60110.0,60104.0,2.05640805]
[1726426878806,0.000826,60110.0,60104.0,2.05840805]
[1726426880227,0.000826,60110.0,60104.0,2.11840805]
[1726426882160,0.000825,60132.0,60123.0,0.19171658]
[1726426882437,0.000825,60132.0,60124.0,0.0009804]
[1726426882683,0.000825,60132.0,60131.0,0.166303]
[1726426883150,0.000825,60132.0,60131.0,0.831517]
[1726426883446,0.000825,60132.0,60131.0,1.164124]
[1726426883938,0.000825,60132.0,60131.0,0.49891]
[1726426884160,0.000825,60132.0,60131.0,0.831517]
[1726426884602,0.000825,60132.0,60131.0,1.164124]
[1726426885063,0.000825,60132.0,60131.0,0.831517]
[1726426885746,0.011825,60132.0,60131.0,0.832517]
[1726426886246,0.005825,60132.0,60131.0,0.831517]
[1726426887173,0.005825,60132.0,60131.0,1.37884058]
[1726426887385,0.005825,60132.0,60131.0,1.55107029]
[1726426887620,0.006825,60132.0,60131.0,1.55107029]
[1726426888046,0.001825,60132.0,60131.0,1.55107029]
[1726426888266,0.001825,60132.0,60131.0,1.55207029]
[1726426888795,0.001825,60132.0,60131.0,1.21946329]
[1726426888965,0.001825,60132.0,60131.0,1.02774671]
[1726426890867,0.001825,60132.0,60131.0,1.36035371]
[1726426891254,0.001825,60132.0,60131.0,1.02774671]
[1726426891760,0.001646,60151.0,60149.0,0.831267]
[1726426891957,0.001646,60151.0,60149.0,0.72383658]
[1726426892207,0.001646,60155.0,60134.0,0.06]
[1726426892208,0.19513235,60164.0,60137.0,0.19171658]
[1726426892450,0.19513235,60164.0,60135.0,0.023]
[1726426892451,0.03861323,60164.0,60148.0,0.0009894]
[1726426892678,0.166218,60162.0,60152.0,0.332488]
[1726426892906,0.166218,60162.0,60141.0,0.19171658]
[1726426892907,0.00341577,60162.0,60141.0,0.19171658]
[1726426893126,0.19513235,60162.0,60140.0,0.03336]
[1726426893372,0.166228,60159.0,60150.0,0.332497]
[1726426893601,0.00341577,60162.0,60153.0,0.16624]
[1726426893860,0.166223,60160.0,60153.0,0.16624]
[1726426894299,0.166222,60161.0,60154.0,0.166239]
[1726426894508,0.166222,60161.0,60155.0,0.166236]
[1726426894716,0.1997,60160.0,60155.0,0.166236]
[1726426894923,0.365923,60160.0,60149.0,0.332507]
[1726426895162,0.2127,60160.0,60155.0,0.166235]
[1726426895593,0.2127,60160.0,60150.0,0.332501]
[1726426895810,0.49871,60159.0,60155.0,0.001]
[1726426896225,0.49871,60159.0,60149.0,0.001]
[1726426896226,0.166234,60156.0,60150.0,0.166248]
[1726426896447,0.166234,60156.0,60149.0,0.001]
[1726426896448,0.49871,60155.0,60151.0,0.166246]
[1726426896673,0.49871,60155.0,60152.0,0.166244]
[1726426897092,0.49871,60155.0,60154.0,0.166239]
[1726426897324,0.49871,60155.0,60152.0,0.166244]
[1726426897537,0.49871,60155.0,60152.0,0.1672379]
[1726426897763,0.49871,60155.0,60154.0,0.166239]
[1726426898391,0.51171,60155.0,60154.0,0.167239]
[1726426898606,0.52471,60155.0,60154.0,0.167239]
[1726426898890,0.51171,60155.0,60154.0,0.167239]
[1726426899118,0.51171,60155.0,60154.0,0.832197]
[1726426899325,0.52471,60155.0,60154.0,1.02491358]
[1726426900177,0.51171,60155.0,60154.0,1.02391358]
[1726426900400,0.50571,60155.0,60154.0,1.02391358]
[1726426900611,0.51371,60155.0,60154.0,1.02491358]
[1726426902835,0.48037094,60155.0,60154.0,1.65162839]
[1726426903067,0.48037094,60155.0,60154.0,1.45739258]
[1726426903517,0.48037094,60155.0,60154.0,1.12491358]
[1726426903733,0.46537094,60155.0,60154.0,1.12291358]
[1726426903989,0.47337094,60155.0,60154.0,1.12391358]
[1726426904462,0.46537094,60155.0,60154.0,1.45539258]
[1726426904694,0.46637094,60155.0,60154.0,1.03591358]
[1726426904911,0.46637094,60155.0,60154.0,1.04595316]
[1726426905124,0.46637094,60155.0,60154.0,1.37843216]
[1726426905349,0.46637094,60155.0,60154.0,1.36839258]
[1726426905789,0.47337094,60155.0,60154.0,1.36939258]
[1726426906012,0.46637094,60155.0,60154.0,0.844197]
[1726426906510,0.46737094,60155.0,60154.0,0.858197]
[1726426906715,0.46737094,60155.0,60154.0,1.190676]
[1726426906931,0.46737094,60155.0,60154.0,0.858197]
[1726426907190,0.46537094,60155.0,60154.0,0.831197]
[1726426907410,0.46537094,60155.0,60154.0,0.833197]
[1726426907635,0.46537094,60155.0,60154.0,1.165676]
[1726426908341,0.46537094,60155.0,60154.0,0.833197]
[1726426909284,0.46537094,60155.0,60154.0,1.165676]
[1726426910830,0.46537094,60155.0,60154.0,0.833197]
[1726426911054,0.46537094,60155.0,60154.0,1.165676]
[1726426912172,0.46537094,60155.0,60154.0,0.833197]
[1726426912605,0.46537094,60155.0,60154.0,1.165676]
[1726426916227,0.46537094,60155.0,60154.0,0.834841]
[1726426916468,0.46619294,60155.0,60154.0,1.16732]
[1726426916725,0.000822,60162.0,60161.0,1.163543]
[1726426917017,0.000822,60162.0,60161.0,1.91627759]
[1726426917880,0.000822,60162.0,60161.0,1.91727759]
[1726426918551,0.000822,60162.0,60161.0,1.93008711]
[1726426918983,0.000822,60162.0,60161.0,1.92708711]
[1726426919198,0.001822,60162.0,60161.0,1.94008711]
[1726426919412,0.001822,60162.0,60161.0,2.04008711]
[1726426919413,0.000822,60162.0,60161.0,2.04008711]
[1726426919625,0.001822,60162.0,60161.0,2.04008711]
[1726426919848,0.002822,60162.0,60161.0,2.05408711]
[1726426920059,0.001822,60162.0,60161.0,2.04008711]
[1726426920277,0.002822,60162.0,60161.0,2.05408711]
[1726426920492,0.002822,60162.0,60161.0,2.05608711]
[1726426920784,0.000823,60165.0,60164.0,1.520908]
[1726426920960,0.000823,60165.0,60164.0,1.82350381]
[1726426921182,0.000823,60165.0,60164.0,1.46807981]
[1726426921402,0.000823,60165.0,60164.0,1.43471981]
[1726426921873,0.000823,60165.0,60164.0,1.44671981]
[1726426922098,0.001823,60165.0,60164.0,1.44671981]
[1726426922331,0.001823,60165.0,60164.0,0.84306]
[1726426923041,0.001823,60165.0,60164.0,0.012]
[1726426923245,0.001823,60165.0,60162.0,0.166216]
[1726426923246,0.000823,60165.0,60162.0,0.166216]
[1726426923479,0.000823,60165.0,60163.0,0.166213]
[1726426923694,0.001823,60165.0,60164.0,0.011]
[1726426923921,0.00523877,60165.0,60164.0,0.011]
[1726426924137,0.002823,60165.0,60162.0,0.166215]
[1726426924348,0.002823,60165.0,60163.0,0.166215]
[1726426924582,0.006823,60165.0,60164.0,0.166212]
[1726426924797,0.006823,60165.0,60164.0,0.498636]
[1726426925017,0.006823,60165.0,60164.0,0.83106]
[1726426925451,0.004823,60165.0,60164.0,0.83106]
[1726426925932,0.003823,60165.0,60164.0,1.163484]
[1726426926157,0.000823,60165.0,60164.0,1.163484]
[1726426926366,0.007823,60165.0,60164.0,1.163484]
[1726426926787,0.003823,60165.0,60164.0,1.163484]
[1726426927009,0.007823,60165.0,60164.0,1.67531981]
[1726426927511,0.003823,60165.0,60164.0,2.10774381]
[1726426927936,0.004823,60165.0,60164.0,2.11374381]
[1726426928582,0.001823,60165.0,60164.0,2.11374381]
[1726426929237,0.001823,60165.0,60164.0,2.11474381]
[1726426929466,0.002823,60165.0,60164.0,2.15410381]
[1726426929908,0.001823,60165.0,60164.0,2.14810381]
[1726426930142,0.000823,60165.0,60164.0,2.14110381]
[1726426930364,0.002823,60165.0,60164.0,2.15610381]
[1726426930812,0.001823,60165.0,60164.0,2.14910381]
[1726426931059,0.002823,60165.0,60164.0,2.16310381]
[1726426931708,0.001823,60165.0,60164.0,2.15510381]
[1726426931940,0.002823,60165.0,60164.0,2.16910381]
[1726426933348,0.002823,60165.0,60164.0,2.17110381]
[1726426934262,0.000824,60171.0,60170.0,1.495759]
[1726426934485,0.000824,60171.0,60170.0,2.01606729]
[1726426935728,0.001824,60171.0,60170.0,2.03006729]
[1726426935947,0.001824,60171.0,60170.0,2.06006729]
[1726426936175,0.001824,60171.0,60170.0,2.12006729]
[1726426936396,0.002824,60171.0,60170.0,2.13206729]
[1726426937091,0.002824,60171.0,60170.0,2.13406729]
[1726426937327,0.002824,60171.0,60170.0,2.07206729]
[1726426937784,0.002824,60171.0,60170.0,2.07406729]
[1726426939143,0.003981,60190.0,60171.0,1.684097]
[1726426939393,0.003981,60190.0,60189.0,0.69014558]
[1726426939640,0.003981,60190.0,60189.0,1.38807758]
[1726426939877,0.003981,60190.0,60189.0,1.38907638]
[1726426942259,0.003981,60190.0,60189.0,1.40007638]
[1726426942496,0.003981,60190.0,60189.0,1.40907638]
[1726426943711,0.003981,60190.0,60189.0,1.58031219]
[1726426943952,0.003981,60190.0,60189.0,1.60331219]
[1726426944891,0.003981,60190.0,60189.0,1.59231219]
[1726426945377,0.003981,60190.0,60189.0,1.60331219]
[1726426945813,0.003981,60190.0,60189.0,1.1839998]
[1726426946251,0.003981,60190.0,60189.0,1.1749998]
[1726426946487,0.003981,60190.0,60189.0,1.1839998]
[1726426947039,0.003981,60190.0,60189.0,0.8517138]
[1726426948781,0.003981,60190.0,60189.0,1.04343038]
[1726426950302,0.003981,60190.0,60189.0,0.5104278]
[1726426950566,0.003981,60190.0,60189.0,0.70414438]
[1726426950794,0.003981,60190.0,60189.0,1.03643038]
[1726426951009,0.003981,60190.0,60189.0,1.03443038]
[1726426951481,0.003981,60190.0,60189.0,1.05979038]
[1726426951721,0.003981,60190.0,60189.0,1.06379038]
[1726426952175,0.003981,60190.0,60189.0,1.05979038]
[1726426952396,0.003981,60190.0,60189.0,1.39607638]
[1726426952644,0.003981,60190.0,60189.0,1.39207638]
[1726426952874,0.004803,60190.0,60189.0,1.42407638]
[1726426953143,0.004803,60190.0,60189.0,0.5014278]
[1726426953611,0.004803,60190.0,60189.0,0.8417138]
[1726426954049,0.004803,60190.0,60189.0,0.8517138]
[1726426954760,0.004803,60190.0,60189.0,1.40159561]
[1726426955005,0.004803,60190.0,60189.0,1.41359561]
[1726426958518,0.004803,60190.0,60189.0,1.51359561]
[1726426961514,0.004803,60190.0,60189.0,1.41359561]
[1726426962493,0.004803,60190.0,60189.0,1.2423598]
[1726426964122,0.004803,60190.0,60189.0,1.2089998]
[1726426966010,0.004803,60190.0,60189.0,1.2423598]
[1726426975314,0.004803,60190.0,60189.0,1.2203598]
[1726426975793,0.004803,60190.0,60189.0,1.2363598]
[1726426976260,0.004803,60190.0,60189.0,1.2293598]
[1726426976526,0.004803,60190.0,60189.0,0.9040738]
[1726426977272,0.004803,60190.0,60189.0,0.0169988]
[1726426978021,0.170943,60190.0,60189.0,0.0169988]
[1726426978509,0.170943,60190.0,60189.0,0.0009988]
[1726426978723,0.175943,60190.0,60189.0,0.0009988]
[1726426979236,0.172943,60190.0,60189.0,0.0009988]
[1726426979461,0.175943,60190.0,60189.0,0.0019988]
[1726426979690,0.009803,60190.0,60189.0,0.0019988]
[1726426979916,0.007803,60190.0,60189.0,0.0019988]
[1726426980393,0.010803,60190.0,60189.0,0.0029988]
[1726426982059,0.007803,60190.0,60189.0,0.0019988]
[1726426983271,0.004803,60190.0,60189.0,0.0019988]
[1726426983552,0.004803,60190.0,60189.0,0.1681418]
[1726426983841,0.004803,60190.0,60189.0,0.5004278]
[1726426984099,0.004803,60190.0,60189.0,0.8327138]
[1726426984577,0.004803,60190.0,60189.0,1.1649998]
[1726426986066,0.004803,60190.0,60189.0,1.1639998]
[1726426986303,0.004803,60190.0,60189.0,1.1729998]
[1726426986756,0.004803,60190.0,60189.0,1.1799998]
[1726426991324,0.004803,60190.0,60189.0,1.70652161]
[1726426992106,0.004803,60190.0,60189.0,1.83988161]
[1726426992345,0.004803,60190.0,60189.0,1.87188161]
[1726426992829,0.004803,60190.0,60189.0,1.9212687]
[1726426993066,0.004803,60190.0,60189.0,2.18816761]
[1726426993311,0.004803,60190.0,60189.0,2.21516761]
[1726426993548,0.000823,60193.0,60192.0,1.84329158]
[1726426993810,0.000823,60193.0,60192.0,2.01452739]
[1726426994299,0.000823,60193.0,60192.0,2.01652739]
[1726426994785,0.000823,60193.0,60192.0,2.01452739]
[1726426995530,0.000823,60193.0,60192.0,2.02852739]
[1726426995983,0.000823,60193.0,60192.0,2.04252739]
[1726426997177,0.000823,60193.0,60192.0,2.02852739]
[1726426997845,0.000823,60193.0,60192.0,2.06383688]
[1726426998105,0.000823,60193.0,60192.0,2.06583688]
[1726426998306,0.000823,60193.0,60192.0,2.01652739]
[1726426998522,0.000823,60193.0,60192.0,2.03052739]
[1726426999216,0.000823,60193.0,60192.0,2.04452739]
[1726426999498,0.000823,60193.0,60192.0,2.07452739]
[1726426999951,0.0031879,60206.0,60205.0,1.196053]
[1726427000192,0.0031879,60206.0,60205.0,1.38876228]
[1726427001380,0.0031879,60206.0,60205.0,1.39876228]
[1726427001872,0.0031879,60206.0,60205.0,1.40676228]
[1726427003076,0.0031879,60206.0,60205.0,1.42976228]
[1726427003297,0.0031879,60206.0,60205.0,1.60099809]